[Event "*** Titled Tuesday Blitz"]
[Site "Chess.com"]
[Date "2019.03.05"]
[Round "9"]
[White "2nd_life"]
[Black "DrMelekess"]
[Result "0-1"]
[WhiteElo "2409"]
[BlackElo "2705"]
[TimeControl "180+2"]
[EndTime "15:15:01 PST"]
[Termination "DrMelekess won by resignation"]

1. e4 {[%clk 0:03:01.9]} 1... Nc6 {[%clk 0:02:55.5]} 2. Nf3 {[%clk 0:03:00]}
2... d5 {[%clk 0:02:56.4]} 3. exd5 {[%clk 0:02:59.7]} 3... Qxd5 {[%clk
0:02:58.3]} 4. Nc3 {[%clk 0:03:00.1]} 4... Qa5 {[%clk 0:02:58.8]} 5. Bb5 {[%clk
0:02:55.5]} 5... Bd7 {[%clk 0:02:58.4]} 6. O-O {[%clk 0:02:52.9]} 6... a6 {[%clk
0:02:59]} 7. Bxc6 {[%clk 0:02:48.1]} 7... Bxc6 {[%clk 0:03:00.9]} 8. Re1 {[%clk
0:02:49.1]} 8... Qh5 {[%clk 0:02:54.7]} 9. Ne5 {[%clk 0:02:36.9]} 9... Qxd1
{[%clk 0:02:54.3]} 10. Rxd1 {[%clk 0:02:37.8]} 10... e6 {[%clk 0:02:09.4]} 11.
Nxc6 {[%clk 0:02:38]} 11... bxc6 {[%clk 0:02:11.3]} 12. b3 {[%clk 0:02:30.3]}
12... Nf6 {[%clk 0:02:05.6]} 13. Bb2 {[%clk 0:02:30.1]} 13... Be7 {[%clk
0:02:05.4]} 14. Ne2 {[%clk 0:02:16.8]} 14... O-O-O {[%clk 0:02:01.1]} 15. f3
{[%clk 0:02:08.8]} 15... Kb7 {[%clk 0:02:00.5]} 16. Kf2 {[%clk 0:02:08.5]} 16...
Bc5+ {[%clk 0:01:26.6]} 17. d4 {[%clk 0:02:08.8]} 17... Be7 {[%clk 0:01:25.7]}
18. c4 {[%clk 0:02:04.5]} 18... Rhe8 {[%clk 0:01:20]} 19. g4 {[%clk 0:01:56]}
19... Nd7 {[%clk 0:01:16.7]} 20. Ng3 {[%clk 0:01:48.4]} 20... g6 {[%clk
0:01:09.8]} 21. f4 {[%clk 0:01:40.7]} 21... Bh4 {[%clk 0:00:32.6]} 22. Kf3
{[%clk 0:01:40.6]} 22... c5 {[%clk 0:00:20.7]} 23. Ne4 {[%clk 0:01:28.9]} 23...
cxd4 {[%clk 0:00:21.5]} 24. Rxd4 {[%clk 0:01:27.7]} 24... f5 {[%clk 0:00:21.5]}
25. gxf5 {[%clk 0:00:35]} 25... exf5 {[%clk 0:00:21.8]} 26. Ng5 {[%clk
0:00:17.1]} 26... Bxg5 {[%clk 0:00:20.2]} 27. fxg5 {[%clk 0:00:14.7]} 27... Ne5+
{[%clk 0:00:21.3]} 28. Kg3 {[%clk 0:00:13]} 28... Rxd4 {[%clk 0:00:18.3]} 29.
Bxd4 {[%clk 0:00:13.7]} 29... Nc6 {[%clk 0:00:20.2]} 30. Bf6 {[%clk 0:00:12.3]}
30... Re3+ {[%clk 0:00:20.1]} 31. Kf2 {[%clk 0:00:10.6]} 31... Rh3 {[%clk
0:00:16.8]} 32. Kg2 {[%clk 0:00:10.2]} 32... Rd3 {[%clk 0:00:17.9]} 33. Rf1
{[%clk 0:00:09.5]} 33... Rd2+ {[%clk 0:00:18.9]} 34. Rf2 {[%clk 0:00:10.7]}
34... Rd1 {[%clk 0:00:16.4]} 35. h4 {[%clk 0:00:10]} 35... Nb4 {[%clk
0:00:12.2]} 36. Re2 {[%clk 0:00:08.7]} 36... Rd7 {[%clk 0:00:10.5]} 37. h5
{[%clk 0:00:08.6]} 37... Nd3 {[%clk 0:00:11.6]} 38. Kf3 {[%clk 0:00:08.9]} 38...
Nc5 {[%clk 0:00:12.9]} 39. h6 {[%clk 0:00:08.3]} 39... Ne4 {[%clk 0:00:14.2]}
40. Kf4 {[%clk 0:00:09.2]} 40... Kc6 {[%clk 0:00:13]} 41. Ke5 {[%clk 0:00:09.4]}
41... Nc5 {[%clk 0:00:13.2]} 42. Re3 {[%clk 0:00:04.8]} 42... Nd3+ {[%clk
0:00:12.6]} 43. Ke6 {[%clk 0:00:05.7]} 43... Nc5+ {[%clk 0:00:11.7]} 44. Ke5
{[%clk 0:00:06.9]} 44... Rd2 {[%clk 0:00:06.9]} 45. Be7 {[%clk 0:00:05.6]} 45...
Nd7+ {[%clk 0:00:04.8]} 46. Ke6 {[%clk 0:00:06.8]} 46... f4 {[%clk 0:00:02.9]}
47. Rf3 {[%clk 0:00:07.1]} 47... Re2+ {[%clk 0:00:04.3]} 48. Kf7 {[%clk
0:00:04.5]} 48... Ne5+ {[%clk 0:00:05.6]} 49. Kg7 {[%clk 0:00:05.7]} 49... Nxf3
{[%clk 0:00:07.5]} 50. Bf6 {[%clk 0:00:06.3]} 50... Nxg5 {[%clk 0:00:06.4]} 51.
Bxg5 {[%clk 0:00:07.3]} 51... f3 {[%clk 0:00:07.8]} 52. Bh4 {[%clk 0:00:08.7]}
52... f2 {[%clk 0:00:07.5]} 53. Bxf2 {[%clk 0:00:09.7]} 53... Rxf2 {[%clk
0:00:09.4]} 54. Kxh7 {[%clk 0:00:11.5]} 54... g5 {[%clk 0:00:11.3]} 55. Kg7
{[%clk 0:00:12.5]} 55... g4 {[%clk 0:00:12.9]} 0-1

[Event "*** Titled Tuesday Blitz"]
[Site "Chess.com"]
[Date "2019.03.05"]
[Round "9"]
[White "TheBigBoss04"]
[Black "PotapovaM"]
[Result "0-1"]
[WhiteElo "2536"]
[BlackElo "2437"]
[TimeControl "180+2"]
[EndTime "15:15:02 PST"]
[Termination "PotapovaM won by checkmate"]

1. d4 {[%clk 0:03:01.9]} 1... Nf6 {[%clk 0:02:58.8]} 2. c4 {[%clk 0:03:03.3]}
2... c5 {[%clk 0:02:59]} 3. d5 {[%clk 0:03:04.8]} 3... b5 {[%clk 0:03:00.2]} 4.
cxb5 {[%clk 0:02:58.9]} 4... a6 {[%clk 0:03:01.5]} 5. bxa6 {[%clk 0:02:49.3]}
5... g6 {[%clk 0:03:02.5]} 6. Nc3 {[%clk 0:02:51.2]} 6... Bg7 {[%clk 0:03:03]}
7. g3 {[%clk 0:02:53.1]} 7... O-O {[%clk 0:03:00.6]} 8. Bg2 {[%clk 0:02:54.6]}
8... d6 {[%clk 0:03:01.8]} 9. Nf3 {[%clk 0:02:51.7]} 9... Bxa6 {[%clk
0:02:58.4]} 10. O-O {[%clk 0:02:51.4]} 10... Nbd7 {[%clk 0:03:00.1]} 11. Rb1
{[%clk 0:02:52.2]} 11... Qa5 {[%clk 0:02:53.3]} 12. Qc2 {[%clk 0:02:46.4]} 12...
Rfb8 {[%clk 0:02:53.3]} 13. Rd1 {[%clk 0:02:45.7]} 13... Ng4 {[%clk 0:02:44.4]}
14. Bd2 {[%clk 0:02:38.7]} 14... Nge5 {[%clk 0:02:37.2]} 15. Nxe5 {[%clk
0:02:35.4]} 15... Nxe5 {[%clk 0:02:39.1]} 16. b3 {[%clk 0:02:36.8]} 16... Qa3
{[%clk 0:02:34.4]} 17. h3 {[%clk 0:02:26.3]} 17... Ra7 {[%clk 0:02:02.1]} 18. f4
{[%clk 0:01:41]} 18... Nd7 {[%clk 0:02:02.9]} 19. Kh2 {[%clk 0:01:20.2]} 19...
Bc8 {[%clk 0:01:48.3]} 20. e4 {[%clk 0:01:03.1]} 20... h5 {[%clk 0:01:20.9]} 21.
Bf1 {[%clk 0:00:53.9]} 21... Ba6 {[%clk 0:01:19.5]} 22. Bg2 {[%clk 0:00:50.1]}
22... Bc8 {[%clk 0:01:20.4]} 23. Bc1 {[%clk 0:00:44.8]} 23... Qa5 {[%clk
0:01:19.1]} 24. Bb2 {[%clk 0:00:46]} 24... Kh7 {[%clk 0:00:56.6]} 25. a4 {[%clk
0:00:46]} 25... Ba6 {[%clk 0:00:48.2]} 26. Ba1 {[%clk 0:00:37.9]} 26... Rab7
{[%clk 0:00:48.8]} 27. Bf1 {[%clk 0:00:36.1]} 27... Bxf1 {[%clk 0:00:47.3]} 28.
Rxf1 {[%clk 0:00:37.6]} 28... c4 {[%clk 0:00:34.8]} 29. Nb5 {[%clk 0:00:18.2]}
29... Bxa1 {[%clk 0:00:35.9]} 30. b4 {[%clk 0:00:17.1]} 30... Qb6 {[%clk
0:00:29.3]} 31. Rxa1 {[%clk 0:00:18]} 31... Rc8 {[%clk 0:00:19.9]} 32. Qc3
{[%clk 0:00:17.6]} 32... Nf6 {[%clk 0:00:19.2]} 33. Rae1 {[%clk 0:00:13.8]}
33... Qa6 {[%clk 0:00:20.1]} 34. Qc2 {[%clk 0:00:09.1]} 34... c3 {[%clk
0:00:17.5]} 35. Rf2 {[%clk 0:00:07.2]} 35... Ra8 {[%clk 0:00:16.8]} 36. e5
{[%clk 0:00:08.2]} 36... Nxd5 {[%clk 0:00:17.3]} 37. e6 {[%clk 0:00:09.5]} 37...
f5 {[%clk 0:00:18]} 38. Rd1 {[%clk 0:00:09]} 38... Nf6 {[%clk 0:00:18.9]} 39.
Nxc3 {[%clk 0:00:08.1]} 39... Rxb4 {[%clk 0:00:20]} 40. Rfd2 {[%clk 0:00:06]}
40... Rc8 {[%clk 0:00:20.9]} 41. Qa2 {[%clk 0:00:05.9]} 41... Rxc3 {[%clk
0:00:21.1]} 42. Rg2 {[%clk 0:00:05.4]} 42... Qxa4 {[%clk 0:00:20.4]} 43. Qd2
{[%clk 0:00:04.4]} 43... Rcb3 {[%clk 0:00:17.5]} 44. Qe1 {[%clk 0:00:05]} 44...
Rb2 {[%clk 0:00:17.4]} 45. Rdd2 {[%clk 0:00:04.6]} 45... Rxd2 {[%clk 0:00:17.5]}
46. Qxd2 {[%clk 0:00:06.3]} 46... Rd4 {[%clk 0:00:13.4]} 47. Qc3 {[%clk
0:00:06.2]} 47... Qc4 {[%clk 0:00:13.1]} 48. Qe3 {[%clk 0:00:07.5]} 48... Re4
{[%clk 0:00:13.9]} 49. Qa3 {[%clk 0:00:08]} 49... Qxe6 {[%clk 0:00:14.9]} 50.
Qa7 {[%clk 0:00:08.7]} 50... Re2 {[%clk 0:00:15.4]} 51. Qa6 {[%clk 0:00:05.7]}
51... Rxg2+ {[%clk 0:00:14.1]} 52. Kxg2 {[%clk 0:00:07.6]} 52... Qe4+ {[%clk
0:00:13.3]} 53. Kh2 {[%clk 0:00:07.6]} 53... Qe6 {[%clk 0:00:13.6]} 54. Qd3
{[%clk 0:00:08]} 54... Ne4 {[%clk 0:00:14.8]} 55. Qc2 {[%clk 0:00:07.9]} 55...
Qd5 {[%clk 0:00:15.5]} 56. Qc7 {[%clk 0:00:04.7]} 56... Qd2+ {[%clk 0:00:15.2]}
57. Kh1 {[%clk 0:00:04.9]} 57... Qe1+ {[%clk 0:00:16.4]} 58. Kh2 {[%clk
0:00:03.9]} 58... Qf2+ {[%clk 0:00:17.3]} 59. Kh1 {[%clk 0:00:04.7]} 59... Nxg3#
{[%clk 0:00:18.7]} 0-1

[Event "*** Titled Tuesday Blitz"]
[Site "Chess.com"]
[Date "2019.03.05"]
[Round "9"]
[White "DawidCzerw"]
[Black "Walter_White_Poland"]
[Result "1-0"]
[WhiteElo "2281"]
[BlackElo "2162"]
[TimeControl "180+2"]
[EndTime "15:15:04 PST"]
[Termination "DawidCzerw won by resignation"]

1. d4 {[%clk 0:03:01.9]} 1... Nf6 {[%clk 0:02:58.8]} 2. c4 {[%clk 0:03:02.6]}
2... c5 {[%clk 0:02:53.8]} 3. d5 {[%clk 0:03:03.4]} 3... e6 {[%clk 0:02:53.4]}
4. Nc3 {[%clk 0:03:03.9]} 4... exd5 {[%clk 0:02:53.1]} 5. cxd5 {[%clk
0:03:05.8]} 5... d6 {[%clk 0:02:54.7]} 6. Nf3 {[%clk 0:03:07.3]} 6... g6 {[%clk
0:02:55.9]} 7. Bf4 {[%clk 0:03:08.8]} 7... a6 {[%clk 0:02:55.4]} 8. Nd2 {[%clk
0:02:56]} 8... Bg7 {[%clk 0:02:44.6]} 9. Nc4 {[%clk 0:02:48.3]} 9... O-O {[%clk
0:02:42.2]} 10. Bxd6 {[%clk 0:02:44.7]} 10... Re8 {[%clk 0:02:41.2]} 11. Bxc5
{[%clk 0:02:37.3]} 11... Qc7 {[%clk 0:02:18.9]} 12. b4 {[%clk 0:02:05.7]} 12...
Nbd7 {[%clk 0:02:03]} 13. d6 {[%clk 0:02:00.3]} 13... Qc6 {[%clk 0:01:56.1]} 14.
Na5 {[%clk 0:01:57.5]} 14... Ne4 {[%clk 0:01:39.5]} 15. Rc1 {[%clk 0:01:16.6]}
15... Bxc3+ {[%clk 0:00:26.5]} 16. Rxc3 {[%clk 0:01:15.3]} 16... Nxc3 {[%clk
0:00:20.6]} 17. Nxc6 {[%clk 0:01:15.8]} 17... Nxd1 {[%clk 0:00:20.9]} 18. Ne7+
{[%clk 0:01:17.7]} 18... Kg7 {[%clk 0:00:16.6]} 19. Kxd1 {[%clk 0:01:17.9]}
19... Nxc5 {[%clk 0:00:17.6]} 20. bxc5 {[%clk 0:01:18.8]} 20... Be6 {[%clk
0:00:18.6]} 21. a3 {[%clk 0:01:12.5]} 21... Rad8 {[%clk 0:00:18.7]} 22. Kc2
{[%clk 0:01:03.9]} 22... b6 {[%clk 0:00:19.6]} 23. e4 {[%clk 0:01:03.3]} 23...
bxc5 {[%clk 0:00:20]} 24. e5 {[%clk 0:01:04.7]} 24... f6 {[%clk 0:00:18.6]} 25.
f4 {[%clk 0:01:05]} 25... fxe5 {[%clk 0:00:18.5]} 26. fxe5 {[%clk 0:01:06.9]}
26... Rxe7 {[%clk 0:00:19.3]} 27. dxe7 {[%clk 0:01:07.4]} 27... Re8 {[%clk
0:00:20.3]} 28. Bxa6 {[%clk 0:01:06.8]} 28... Rxe7 {[%clk 0:00:21.5]} 29. Bd3
{[%clk 0:00:59.6]} 29... c4 {[%clk 0:00:21]} 30. Be4 {[%clk 0:00:58]} 30... Bf7
{[%clk 0:00:20.8]} 31. Kc3 {[%clk 0:00:54.3]} 31... Rxe5 {[%clk 0:00:21.7]} 32.
Kd4 {[%clk 0:00:55.9]} 32... Ra5 {[%clk 0:00:21.9]} 33. Ra1 {[%clk 0:00:56.6]}
33... Kf6 {[%clk 0:00:17.6]} 34. Bc6 {[%clk 0:00:42.1]} 34... Ke7 {[%clk
0:00:16.1]} 35. a4 {[%clk 0:00:43]} 35... Kd6 {[%clk 0:00:14.7]} 36. Bb5 {[%clk
0:00:44.2]} 36... Bd5 {[%clk 0:00:14.2]} 37. Rf1 {[%clk 0:00:42.5]} 37... Bxg2
{[%clk 0:00:13.2]} 38. Rf6+ {[%clk 0:00:39.2]} 38... Ke7 {[%clk 0:00:13.3]} 39.
Rf2 {[%clk 0:00:37]} 39... Ba8 {[%clk 0:00:07.2]} 40. Kxc4 {[%clk 0:00:37.7]}
40... Ra7 {[%clk 0:00:06.8]} 41. Kc5 {[%clk 0:00:35.3]} 41... Rc7+ {[%clk
0:00:05.7]} 42. Kb6 {[%clk 0:00:36.5]} 42... Rb7+ {[%clk 0:00:05.6]} 43. Ka6
{[%clk 0:00:36.9]} 43... Rc7 {[%clk 0:00:02.1]} 44. a5 {[%clk 0:00:37.8]} 44...
Bd5 {[%clk 0:00:02.9]} 45. Kb6 {[%clk 0:00:23.6]} 45... Rc3 {[%clk 0:00:03.8]}
46. a6 {[%clk 0:00:24.2]} 46... Ra3 {[%clk 0:00:04.8]} 47. Rc2 {[%clk
0:00:19.6]} 47... g5 {[%clk 0:00:05.4]} 48. Rc7+ {[%clk 0:00:20.3]} 48... Kd6
{[%clk 0:00:06.4]} 49. Rxh7 {[%clk 0:00:22.2]} 49... g4 {[%clk 0:00:07.4]} 50.
Rh6+ {[%clk 0:00:22.9]} 50... Ke5 {[%clk 0:00:08]} 51. a7 {[%clk 0:00:24.1]}
51... Kf4 {[%clk 0:00:07.9]} 52. Rh7 {[%clk 0:00:23.8]} 52... g3 {[%clk
0:00:06.9]} 53. hxg3+ {[%clk 0:00:21]} 53... Kxg3 {[%clk 0:00:07.2]} 54. Bc6
{[%clk 0:00:19.9]} 54... Bxc6 {[%clk 0:00:06.6]} 55. Kxc6 {[%clk 0:00:21.8]}
55... Rc3+ {[%clk 0:00:07.5]} 56. Kb7 {[%clk 0:00:21.6]} 56... Rb3+ {[%clk
0:00:08.6]} 57. Kc8 {[%clk 0:00:21.1]} 57... Rc3+ {[%clk 0:00:08.4]} 58. Kb8
{[%clk 0:00:20.7]} 58... Rb3+ {[%clk 0:00:09]} 59. Rb7 {[%clk 0:00:21.6]} 1-0

[Event "*** Titled Tuesday Blitz"]
[Site "Chess.com"]
[Date "2019.03.05"]
[Round "9"]
[White "Ar4uha"]
[Black "Alexander_Moskalenko"]
[Result "1/2-1/2"]
[WhiteElo "2504"]
[BlackElo "2770"]
[TimeControl "180+2"]
[EndTime "15:15:06 PST"]
[Termination "Game drawn - insufficient material"]

1. e4 {[%clk 0:03:01.9]} 1... e5 {[%clk 0:03:00.9]} 2. Nf3 {[%clk 0:03:02.9]}
2... Nc6 {[%clk 0:03:02.2]} 3. d4 {[%clk 0:03:04.5]} 3... exd4 {[%clk
0:03:03.1]} 4. Nxd4 {[%clk 0:03:06.4]} 4... Bc5 {[%clk 0:03:03.3]} 5. Nb3 {[%clk
0:03:07.7]} 5... Bb6 {[%clk 0:03:03.4]} 6. Nc3 {[%clk 0:03:09.3]} 6... Nf6
{[%clk 0:03:02.2]} 7. Qe2 {[%clk 0:03:10.3]} 7... d6 {[%clk 0:03:02]} 8. Be3
{[%clk 0:03:11.7]} 8... O-O {[%clk 0:03:01.2]} 9. O-O-O {[%clk 0:03:12.6]} 9...
Be6 {[%clk 0:02:28.4]} 10. Kb1 {[%clk 0:03:11.2]} 10... Nd7 {[%clk 0:02:24.1]}
11. g4 {[%clk 0:02:47.6]} 11... a5 {[%clk 0:02:25.1]} 12. Nd4 {[%clk 0:02:26.1]}
12... Bxd4 {[%clk 0:02:19.8]} 13. Bxd4 {[%clk 0:02:28]} 13... Nxd4 {[%clk
0:02:00.8]} 14. Rxd4 {[%clk 0:02:29.9]} 14... Qh4 {[%clk 0:02:02.3]} 15. f3
{[%clk 0:02:25.6]} 15... Rfe8 {[%clk 0:02:03.7]} 16. Qd2 {[%clk 0:02:20.4]}
16... Nc5 {[%clk 0:02:04.6]} 17. Bb5 {[%clk 0:02:15.6]} 17... Red8 {[%clk
0:02:00]} 18. Be2 {[%clk 0:02:08]} 18... h6 {[%clk 0:01:57.8]} 19. Qe3 {[%clk
0:01:50.6]} 19... Re8 {[%clk 0:01:58.9]} 20. Nd5 {[%clk 0:01:46.8]} 20... Bxd5
{[%clk 0:01:59.6]} 21. Rxd5 {[%clk 0:01:48.7]} 21... b6 {[%clk 0:01:46]} 22. g5
{[%clk 0:01:41.8]} 22... Re5 {[%clk 0:01:41.4]} 23. Rxe5 {[%clk 0:01:36.1]}
23... dxe5 {[%clk 0:01:43.3]} 24. gxh6 {[%clk 0:01:36.2]} 24... Qxh6 {[%clk
0:01:43.8]} 25. Qxh6 {[%clk 0:01:34.5]} 25... gxh6 {[%clk 0:01:45.7]} 26. Bc4
{[%clk 0:01:34.5]} 26... Rd8 {[%clk 0:01:39.6]} 27. Kc1 {[%clk 0:01:36]} 27...
Kg7 {[%clk 0:01:39.7]} 28. Rg1+ {[%clk 0:01:28.8]} 28... Kf6 {[%clk 0:01:40.2]}
29. Rg3 {[%clk 0:01:24.5]} 29... h5 {[%clk 0:01:24]} 30. h4 {[%clk 0:01:21.1]}
30... c6 {[%clk 0:01:18.7]} 31. Rg5 {[%clk 0:01:20.7]} 31... Ne6 {[%clk
0:01:14.1]} 32. Rf5+ {[%clk 0:01:19.1]} 32... Ke7 {[%clk 0:01:13.6]} 33. Rxe5
{[%clk 0:01:17.3]} 33... Rg8 {[%clk 0:01:14.4]} 34. Bxe6 {[%clk 0:01:02.7]}
34... fxe6 {[%clk 0:01:16.3]} 35. Rxh5 {[%clk 0:00:55.8]} 35... Rf8 {[%clk
0:01:17.5]} 36. e5 {[%clk 0:00:38.8]} 36... Rxf3 {[%clk 0:01:18.5]} 37. Rh7+
{[%clk 0:00:40.3]} 37... Kd8 {[%clk 0:01:19.6]} 38. h5 {[%clk 0:00:39.5]} 38...
Rh3 {[%clk 0:01:06.5]} 39. h6 {[%clk 0:00:40.3]} 39... b5 {[%clk 0:01:00.5]} 40.
b3 {[%clk 0:00:37.4]} 40... a4 {[%clk 0:01:00]} 41. Kb2 {[%clk 0:00:34.1]} 41...
axb3 {[%clk 0:01:00.9]} 42. axb3 {[%clk 0:00:34.9]} 42... b4 {[%clk 0:01:02.3]}
43. Kc1 {[%clk 0:00:36.3]} 43... Rh2 {[%clk 0:00:56.3]} 44. Kd1 {[%clk
0:00:36.4]} 44... c5 {[%clk 0:00:48.1]} 45. Kc1 {[%clk 0:00:33.4]} 45... Rh1+
{[%clk 0:00:46.9]} 46. Kd2 {[%clk 0:00:34.6]} 46... Rh3 {[%clk 0:00:38.7]} 47.
Ke2 {[%clk 0:00:35.7]} 47... Ke8 {[%clk 0:00:39.4]} 48. Rc7 {[%clk 0:00:30]}
48... Rxh6 {[%clk 0:00:36.5]} 49. Rxc5 {[%clk 0:00:31.2]} 49... Rh4 {[%clk
0:00:29.6]} 50. Rc4 {[%clk 0:00:27.9]} 50... Rh5 {[%clk 0:00:30.8]} 51. Re4
{[%clk 0:00:25.1]} 51... Kd7 {[%clk 0:00:24.9]} 52. Kd3 {[%clk 0:00:26.5]} 52...
Rh3+ {[%clk 0:00:22.3]} 53. Re3 {[%clk 0:00:21.4]} 53... Rxe3+ {[%clk
0:00:14.1]} 54. Kxe3 {[%clk 0:00:22.3]} 54... Kc6 {[%clk 0:00:16]} 55. Kd4
{[%clk 0:00:21.1]} 55... Kb5 {[%clk 0:00:17.5]} 56. c4+ {[%clk 0:00:14.3]} 56...
bxc3 {[%clk 0:00:18.9]} 57. Kxc3 {[%clk 0:00:16.2]} 57... Kc5 {[%clk 0:00:20.7]}
58. b4+ {[%clk 0:00:17.2]} 58... Kd5 {[%clk 0:00:22.2]} 59. Kb3 {[%clk 0:00:11]}
59... Kxe5 {[%clk 0:00:21]} 60. Kc4 {[%clk 0:00:12]} 60... Kd6 {[%clk
0:00:22.2]} 61. Kb5 {[%clk 0:00:11.7]} 61... Kc7 {[%clk 0:00:23.4]} 62. Kc5
{[%clk 0:00:12.7]} 62... Kb7 {[%clk 0:00:22.8]} 63. Kd6 {[%clk 0:00:13.9]} 63...
Kb6 {[%clk 0:00:24.3]} 64. Kxe6 {[%clk 0:00:15.2]} 64... Kb5 {[%clk 0:00:26.2]}
65. Kf5 {[%clk 0:00:15.6]} 65... Kxb4 {[%clk 0:00:28.1]} 1/2-1/2

[Event "*** Titled Tuesday Blitz"]
[Site "Chess.com"]
[Date "2019.03.05"]
[Round "9"]
[White "mlchen"]
[Black "andrzej"]
[Result "0-1"]
[WhiteElo "2369"]
[BlackElo "2305"]
[TimeControl "180+2"]
[EndTime "15:15:06 PST"]
[Termination "andrzej won by checkmate"]

1. e4 {[%clk 0:03:01.9]} 1... c6 {[%clk 0:03:01.1]} 2. d4 {[%clk 0:03:02.5]}
2... d5 {[%clk 0:03:02.7]} 3. exd5 {[%clk 0:03:04.1]} 3... cxd5 {[%clk 0:03:04]}
4. c4 {[%clk 0:03:05.7]} 4... Nf6 {[%clk 0:03:04.8]} 5. Nc3 {[%clk 0:03:06.2]}
5... Nc6 {[%clk 0:03:06.3]} 6. Nf3 {[%clk 0:03:07.4]} 6... Bg4 {[%clk
0:03:07.9]} 7. cxd5 {[%clk 0:03:07.1]} 7... Nxd5 {[%clk 0:03:09.8]} 8. Be2
{[%clk 0:03:07.6]} 8... g6 {[%clk 0:03:03.4]} 9. Qb3 {[%clk 0:03:01]} 9... Nb6
{[%clk 0:02:33.6]} 10. d5 {[%clk 0:02:52.3]} 10... Bxf3 {[%clk 0:02:29.1]} 11.
Bxf3 {[%clk 0:02:33.4]} 11... Nd4 {[%clk 0:02:25.2]} 12. Qd1 {[%clk 0:02:34.4]}
12... Bg7 {[%clk 0:02:22.4]} 13. O-O {[%clk 0:02:33.1]} 13... O-O {[%clk
0:02:22.6]} 14. Be4 {[%clk 0:02:21.4]} 14... Nc4 {[%clk 0:02:07.5]} 15. Rb1
{[%clk 0:01:27.9]} 15... Nd6 {[%clk 0:02:00.4]} 16. Be3 {[%clk 0:01:10.6]} 16...
Nxe4 {[%clk 0:01:57.4]} 17. Bxd4 {[%clk 0:01:11.5]} 17... Nf6 {[%clk 0:01:37.2]}
18. Re1 {[%clk 0:00:58.5]} 18... Qd7 {[%clk 0:01:37.9]} 19. Bxf6 {[%clk
0:00:49.1]} 19... exf6 {[%clk 0:01:30.7]} 20. Qd3 {[%clk 0:00:41.1]} 20... Rad8
{[%clk 0:01:29.4]} 21. Rbd1 {[%clk 0:00:41.6]} 21... f5 {[%clk 0:01:30.7]} 22.
d6 {[%clk 0:00:39.2]} 22... Rfe8 {[%clk 0:01:17.7]} 23. Rxe8+ {[%clk 0:00:26.6]}
23... Rxe8 {[%clk 0:01:14.9]} 24. b3 {[%clk 0:00:17.3]} 24... Re6 {[%clk
0:01:06.4]} 25. Nb5 {[%clk 0:00:14.1]} 25... Bf8 {[%clk 0:00:42.2]} 26. Rc1
{[%clk 0:00:03.5]} 26... a6 {[%clk 0:00:36.3]} 27. Nc3 {[%clk 0:00:04.4]} 27...
Rxd6 {[%clk 0:00:36.8]} 28. Qf3 {[%clk 0:00:05.9]} 28... Bg7 {[%clk 0:00:34.8]}
29. h3 {[%clk 0:00:06.2]} 29... Rd3 {[%clk 0:00:35.5]} 30. Qe2 {[%clk
0:00:06.5]} 30... Rxc3 {[%clk 0:00:34.6]} 31. Rxc3 {[%clk 0:00:07.4]} 31... Bxc3
{[%clk 0:00:35.6]} 32. a4 {[%clk 0:00:09.3]} 32... Qd6 {[%clk 0:00:30.5]} 33.
Qc4 {[%clk 0:00:10]} 33... Be5 {[%clk 0:00:17.7]} 34. g3 {[%clk 0:00:11.1]}
34... Qc6 {[%clk 0:00:13.8]} 35. Qd3 {[%clk 0:00:11.6]} 35... Bf6 {[%clk
0:00:11.2]} 36. Qe3 {[%clk 0:00:11.1]} 36... Kg7 {[%clk 0:00:11.7]} 37. Qd3
{[%clk 0:00:12.1]} 37... h5 {[%clk 0:00:12.7]} 38. h4 {[%clk 0:00:12.7]} 38...
Qe6 {[%clk 0:00:11.9]} 39. Kh2 {[%clk 0:00:09.6]} 39... Qe4 {[%clk 0:00:10.1]}
40. Qd2 {[%clk 0:00:08.8]} 40... Be5 {[%clk 0:00:09.6]} 41. Qg5 {[%clk 0:00:05]}
41... f4 {[%clk 0:00:07.1]} 42. Kh3 {[%clk 0:00:05.5]} 42... Qf5+ {[%clk
0:00:06.7]} 43. Kg2 {[%clk 0:00:05.3]} 43... Qxg5 {[%clk 0:00:07.4]} 44. hxg5
{[%clk 0:00:07.2]} 44... fxg3 {[%clk 0:00:07.9]} 45. fxg3 {[%clk 0:00:08.6]}
45... Bd4 {[%clk 0:00:08.6]} 46. Kf3 {[%clk 0:00:09.6]} 46... Kf8 {[%clk
0:00:09.3]} 47. Ke4 {[%clk 0:00:11]} 47... Bb2 {[%clk 0:00:08.3]} 48. Kd5 {[%clk
0:00:11.7]} 48... Ke7 {[%clk 0:00:09.6]} 49. Kc5 {[%clk 0:00:13]} 49... Kd7
{[%clk 0:00:10.5]} 50. Kb6 {[%clk 0:00:14.1]} 50... Kc8 {[%clk 0:00:11.7]} 51.
Kc5 {[%clk 0:00:15.6]} 51... Bc1 {[%clk 0:00:11.7]} 52. Kd6 {[%clk 0:00:16.8]}
52... Bxg5 {[%clk 0:00:12.6]} 53. Ke5 {[%clk 0:00:18.5]} 53... Kd7 {[%clk
0:00:10.6]} 54. Kd5 {[%clk 0:00:19.6]} 54... f5 {[%clk 0:00:10.3]} 55. Ke5
{[%clk 0:00:20.6]} 55... h4 {[%clk 0:00:10.5]} 56. gxh4 {[%clk 0:00:21.7]} 56...
Bxh4 {[%clk 0:00:12.4]} 57. Kf4 {[%clk 0:00:23.4]} 57... Ke6 {[%clk 0:00:12.4]}
58. b4 {[%clk 0:00:24.5]} 58... Be7 {[%clk 0:00:13.3]} 59. b5 {[%clk 0:00:25.8]}
59... axb5 {[%clk 0:00:14.7]} 60. axb5 {[%clk 0:00:27.7]} 60... Bc5 {[%clk
0:00:16.2]} 61. Kg5 {[%clk 0:00:28.3]} 61... Ke5 {[%clk 0:00:17.5]} 62. Kxg6
{[%clk 0:00:29.8]} 62... f4 {[%clk 0:00:18.8]} 63. Kf7 {[%clk 0:00:31.5]} 63...
f3 {[%clk 0:00:20.1]} 64. Ke8 {[%clk 0:00:32.7]} 64... f2 {[%clk 0:00:21.3]} 65.
Kd7 {[%clk 0:00:34.4]} 65... f1=Q {[%clk 0:00:22.4]} 66. Kc7 {[%clk 0:00:36]}
66... Qf7+ {[%clk 0:00:23]} 67. Kb8 {[%clk 0:00:37.6]} 67... Qd7 {[%clk
0:00:19.6]} 68. b6 {[%clk 0:00:34.9]} 68... Bxb6 {[%clk 0:00:20.2]} 69. Ka8
{[%clk 0:00:36]} 69... Qc8# {[%clk 0:00:21.4]} 0-1